[Event "Late-Titled-Tuesday-Blitz-April-30-2024"]
[Site "Chess.com"]
[Date "2024.04.30"]
[Round "3"]
[White "Mackster23"]
[Black "penguingm1"]
[Result "0-1"]
[WhiteElo "2597"]
[BlackElo "2860"]
[TimeControl "180+1"]
[EndTime "14:28:40 PDT"]
[Termination "penguingm1 won by resignation"]

1. e4 {[%clk 0:03:00.9]} 1... e5 {[%clk 0:03:00.2]} 2. Nf3 {[%clk 0:03:01.1]}
2... Nc6 {[%clk 0:03:00.9]} 3. Bb5 {[%clk 0:03:01.5]} 3... g6 {[%clk 0:03:00.6]}
4. c3 {[%clk 0:03:01.4]} 4... a6 {[%clk 0:02:59.4]} 5. Ba4 {[%clk 0:02:58.5]}
5... Bg7 {[%clk 0:02:59]} 6. O-O {[%clk 0:02:58.1]} 6... b5 {[%clk 0:02:59.2]}
7. Bc2 {[%clk 0:02:57.9]} 7... d6 {[%clk 0:02:59.6]} 8. d4 {[%clk 0:02:58.2]}
8... exd4 {[%clk 0:03:00.5]} 9. cxd4 {[%clk 0:02:58.6]} 9... Bg4 {[%clk
0:03:01.3]} 10. Be3 {[%clk 0:02:58.8]} 10... Bxf3 {[%clk 0:03:00.1]} 11. gxf3
{[%clk 0:02:54.7]} 11... Qf6 {[%clk 0:03:00.4]} 12. Nc3 {[%clk 0:02:09.9]} 12...
Nge7 {[%clk 0:02:59.3]} 13. d5 {[%clk 0:01:48.6]} 13... Ne5 {[%clk 0:02:58.7]}
14. Kg2 {[%clk 0:01:48.7]} 14... g5 {[%clk 0:02:35.8]} 15. Bd4 {[%clk 0:01:42]}
15... N7g6 {[%clk 0:02:33.5]} 16. Kh1 {[%clk 0:01:36.4]} 16... Nh4 {[%clk
0:02:20.3]} 17. f4 {[%clk 0:01:34.3]} 17... Qxf4 {[%clk 0:02:14.6]} 18. Be3
{[%clk 0:01:33.6]} 18... Qf3+ {[%clk 0:02:09.4]} 19. Qxf3 {[%clk 0:01:33.6]}
19... Nexf3 {[%clk 0:02:10]} 20. Rad1 {[%clk 0:01:27.4]} 20... Be5 {[%clk
0:02:08.8]} 21. h3 {[%clk 0:01:26.2]} 21... h5 {[%clk 0:02:08.2]} 22. Ne2 {[%clk
0:00:55.4]} 22... Bxb2 {[%clk 0:02:03.4]} 23. Ng1 {[%clk 0:00:54.8]} 23... Be5
{[%clk 0:02:01.7]} 24. Nxf3 {[%clk 0:00:53.8]} 24... Nxf3 {[%clk 0:02:02.6]} 25.
Kg2 {[%clk 0:00:54.2]} 25... g4 {[%clk 0:02:03.1]} 26. Rd3 {[%clk 0:00:51.5]}
26... Kd7 {[%clk 0:02:02]} 27. Bd1 {[%clk 0:00:49.9]} 27... Nh4+ {[%clk
0:02:00.2]} 28. Kh1 {[%clk 0:00:50]} 28... Rag8 {[%clk 0:02:00.7]} 29. a4 {[%clk
0:00:42.5]} 29... Ke7 {[%clk 0:01:49.8]} 30. axb5 {[%clk 0:00:41.9]} 30... axb5
{[%clk 0:01:50.7]} 31. Rb3 {[%clk 0:00:41.8]} 31... g3 {[%clk 0:01:48.3]} 32.
fxg3 {[%clk 0:00:37.5]} 32... Rxg3 {[%clk 0:01:49.2]} 33. Bf2 {[%clk 0:00:33.2]}
33... Rxb3 {[%clk 0:01:48.5]} 34. Bxh4+ {[%clk 0:00:32.8]} 34... f6 {[%clk
0:01:41.2]} 35. Bxb3 {[%clk 0:00:33.3]} 35... Ra8 {[%clk 0:01:42]} 36. Bd1
{[%clk 0:00:31.3]} 36... Ra3 {[%clk 0:01:42.1]} 37. Bf3 {[%clk 0:00:28.8]} 37...
b4 {[%clk 0:01:42.4]} 38. Kg2 {[%clk 0:00:26.1]} 38... b3 {[%clk 0:01:42.5]} 39.
Be2 {[%clk 0:00:18.1]} 39... b2 {[%clk 0:01:42]} 40. Rb1 {[%clk 0:00:18.1]}
40... Re3 {[%clk 0:01:40.5]} 41. Bf3 {[%clk 0:00:17.5]} 41... Rc3 {[%clk
0:01:37.1]} 42. Be2 {[%clk 0:00:13.1]} 42... Re3 {[%clk 0:01:29.2]} 43. Bf3
{[%clk 0:00:13.4]} 43... Kf8 {[%clk 0:01:27.8]} 44. Bf2 {[%clk 0:00:12.8]} 44...
Ra3 {[%clk 0:01:25.3]} 45. Be2 {[%clk 0:00:10.4]} 45... Kg7 {[%clk 0:01:25]} 46.
Be1 {[%clk 0:00:06.5]} 46... Kg6 {[%clk 0:01:25.4]} 47. Bd2 {[%clk 0:00:06.4]}
47... Rg3+ {[%clk 0:01:23.9]} 48. Kf2 {[%clk 0:00:06.7]} 48... Rxh3 {[%clk
0:01:24.1]} 49. Rg1+ {[%clk 0:00:06.6]} 49... Kf7 {[%clk 0:01:24.5]} 50. Bb5
{[%clk 0:00:05.8]} 50... Bd4+ {[%clk 0:01:24.3]} 51. Kg2 {[%clk 0:00:05.5]}
51... Bxg1 {[%clk 0:01:23]} 0-1

[Event "Late-Titled-Tuesday-Blitz-April-30-2024"]
[Site "Chess.com"]
[Date "2024.04.30"]
[Round "3"]
[White "duone"]
[Black "th3d4rkness"]
[Result "1-0"]
[WhiteElo "2417"]
[BlackElo "2160"]
[TimeControl "180+1"]
[EndTime "14:28:43 PDT"]
[Termination "duone won on time"]

1. e4 {[%clk 0:03:00.9]} 1... c5 {[%clk 0:02:59.3]} 2. Nf3 {[%clk 0:03:01]} 2...
Nc6 {[%clk 0:02:59]} 3. d4 {[%clk 0:03:00.6]} 3... cxd4 {[%clk 0:02:59.2]} 4.
Nxd4 {[%clk 0:02:59.9]} 4... Nf6 {[%clk 0:02:59.6]} 5. Nc3 {[%clk 0:02:59]} 5...
e5 {[%clk 0:02:59.9]} 6. Ndb5 {[%clk 0:02:58.1]} 6... d6 {[%clk 0:03:00.1]} 7.
Nd5 {[%clk 0:02:58]} 7... Nxd5 {[%clk 0:02:59.6]} 8. exd5 {[%clk 0:02:58.7]}
8... Nb8 {[%clk 0:03:00.2]} 9. c4 {[%clk 0:02:58.3]} 9... Be7 {[%clk 0:02:59]}
10. Be3 {[%clk 0:02:57.6]} 10... a6 {[%clk 0:02:56.9]} 11. Nc3 {[%clk
0:02:56.4]} 11... O-O {[%clk 0:02:55.8]} 12. Bd3 {[%clk 0:02:55.7]} 12... f5
{[%clk 0:02:55.3]} 13. O-O {[%clk 0:02:55.2]} 13... e4 {[%clk 0:02:36.7]} 14.
Bc2 {[%clk 0:02:49.2]} 14... Nd7 {[%clk 0:02:23.2]} 15. f3 {[%clk 0:02:47]}
15... f4 {[%clk 0:02:14]} 16. Bd4 {[%clk 0:02:43.1]} 16... e3 {[%clk 0:02:08.8]}
17. Qd3 {[%clk 0:02:42.7]} 17... g6 {[%clk 0:02:04.6]} 18. Rae1 {[%clk
0:02:41.3]} 18... Bf6 {[%clk 0:02:03.3]} 19. Ne4 {[%clk 0:02:38.5]} 19... Ne5
{[%clk 0:01:54.7]} 20. Qc3 {[%clk 0:02:32.4]} 20... Bf5 {[%clk 0:01:49.7]} 21.
c5 {[%clk 0:02:26.4]} 21... Bxe4 {[%clk 0:01:43.8]} 22. fxe4 {[%clk 0:02:26.5]}
22... g5 {[%clk 0:01:33.4]} 23. cxd6 {[%clk 0:02:26.3]} 23... Rc8 {[%clk
0:01:18.1]} 24. Qb3 {[%clk 0:02:05.2]} 24... Qxd6 {[%clk 0:01:05.3]} 25. Bc3
{[%clk 0:02:05.1]} 25... Rf7 {[%clk 0:00:57.2]} 26. Re2 {[%clk 0:01:50.6]} 26...
b5 {[%clk 0:00:45.1]} 27. a3 {[%clk 0:01:45.5]} 27... Kg7 {[%clk 0:00:38.3]} 28.
Rd1 {[%clk 0:01:36.5]} 28... Nc4 {[%clk 0:00:29.1]} 29. Bxf6+ {[%clk 0:01:30.9]}
29... Qxf6 {[%clk 0:00:26.3]} 30. Bd3 {[%clk 0:01:27.9]} 30... Nd2 {[%clk
0:00:22.3]} 31. Qb4 {[%clk 0:01:21.4]} 31... f3 {[%clk 0:00:18.1]} 32. Rexd2
{[%clk 0:01:15.8]} 32... exd2 {[%clk 0:00:10.7]} 33. Qxd2 {[%clk 0:01:15.6]}
33... fxg2 {[%clk 0:00:09.4]} 34. Qxg2 {[%clk 0:01:13.2]} 34... h6 {[%clk
0:00:05.7]} 35. Rf1 {[%clk 0:01:11.9]} 35... Qd4+ {[%clk 0:00:05.6]} 36. Kh1
{[%clk 0:01:11]} 36... Rxf1+ {[%clk 0:00:05.5]} 37. Qxf1 {[%clk 0:01:08.5]}
37... Rf8 {[%clk 0:00:04.8]} 38. Qe2 {[%clk 0:01:05.8]} 38... Rf2 {[%clk
0:00:04.8]} 39. Qd1 {[%clk 0:00:59.1]} 1-0

[Event "Late-Titled-Tuesday-Blitz-April-30-2024"]
[Site "Chess.com"]
[Date "2024.04.30"]
[Round "3"]
[White "Janh4"]
[Black "emeli_chess"]
[Result "0-1"]
[WhiteElo "2199"]
[BlackElo "2476"]
[TimeControl "180+1"]
[EndTime "14:28:47 PDT"]
[Termination "emeli_chess won on time"]

1. d4 {[%clk 0:03:00.9]} 1... Nf6 {[%clk 0:02:58.2]} 2. Nc3 {[%clk 0:03:00.1]}
2... d5 {[%clk 0:02:57.8]} 3. Bf4 {[%clk 0:03:00.2]} 3... c5 {[%clk 0:02:57.3]}
4. e3 {[%clk 0:03:00.2]} 4... cxd4 {[%clk 0:02:57.4]} 5. exd4 {[%clk 0:03:00.2]}
5... a6 {[%clk 0:02:57.6]} 6. Nf3 {[%clk 0:02:59.3]} 6... Bg4 {[%clk 0:02:54.5]}
7. h3 {[%clk 0:02:59.5]} 7... Bxf3 {[%clk 0:02:54.4]} 8. Qxf3 {[%clk 0:02:59.1]}
8... Nc6 {[%clk 0:02:53.6]} 9. O-O-O {[%clk 0:02:55.9]} 9... e6 {[%clk
0:02:53.3]} 10. g4 {[%clk 0:02:51.9]} 10... h6 {[%clk 0:02:52.6]} 11. Bg2 {[%clk
0:02:47.1]} 11... Bd6 {[%clk 0:02:51.6]} 12. Rhe1 {[%clk 0:02:46.8]} 12... Bxf4+
{[%clk 0:02:46.8]} 13. Qxf4 {[%clk 0:02:46.6]} 13... O-O {[%clk 0:02:46.8]} 14.
h4 {[%clk 0:02:36.4]} 14... Nh7 {[%clk 0:02:34]} 15. Qg3 {[%clk 0:02:31]} 15...
Re8 {[%clk 0:02:06.2]} 16. f4 {[%clk 0:02:28]} 16... b5 {[%clk 0:01:54.2]} 17.
g5 {[%clk 0:02:21.6]} 17... h5 {[%clk 0:01:51.2]} 18. g6 {[%clk 0:02:16.7]}
18... fxg6 {[%clk 0:01:47.7]} 19. Nxd5 {[%clk 0:01:22.5]} 19... exd5 {[%clk
0:01:25.6]} 20. Rxe8+ {[%clk 0:01:21.2]} 20... Qxe8 {[%clk 0:01:25.9]} 21. Bxd5+
{[%clk 0:01:21.7]} 21... Kh8 {[%clk 0:01:24.9]} 22. Re1 {[%clk 0:00:32.9]} 22...
Qd7 {[%clk 0:01:21.9]} 23. Be4 {[%clk 0:00:29.8]} 23... Nf6 {[%clk 0:01:15.8]}
24. Qxg6 {[%clk 0:00:29.4]} 24... Nxe4 {[%clk 0:01:13.7]} 25. Qxh5+ {[%clk
0:00:30]} 25... Kg8 {[%clk 0:01:13.1]} 26. Rxe4 {[%clk 0:00:30.6]} 26... Rf8
{[%clk 0:01:09.2]} 27. c3 {[%clk 0:00:14.5]} 27... Qf5 {[%clk 0:01:01.8]} 28.
Qe2 {[%clk 0:00:05.3]} 28... Qd5 {[%clk 0:00:49.8]} 29. b3 {[%clk 0:00:03.1]}
29... a5 {[%clk 0:00:47.4]} 30. Kb2 {[%clk 0:00:02.8]} 30... a4 {[%clk
0:00:46.7]} 31. h5 {[%clk 0:00:00.1]} 31... axb3 {[%clk 0:00:45.4]} 0-1

[Event "Late-Titled-Tuesday-Blitz-April-30-2024"]
[Site "Chess.com"]
[Date "2024.04.30"]
[Round "3"]
[White "MNyuyu"]
[Black "CarrotsandPizza"]
[Result "0-1"]
[WhiteElo "2368"]
[BlackElo "2596"]
[TimeControl "180+1"]
[EndTime "14:28:49 PDT"]
[Termination "CarrotsandPizza won by resignation"]

1. d4 {[%clk 0:03:00.9]} 1... Nf6 {[%clk 0:03:00]} 2. Nf3 {[%clk 0:03:00.2]}
2... g6 {[%clk 0:03:00.3]} 3. c4 {[%clk 0:02:59.6]} 3... Bg7 {[%clk 0:03:00.6]}
4. Nc3 {[%clk 0:03:00.2]} 4... d6 {[%clk 0:03:01.1]} 5. e4 {[%clk 0:03:00.3]}
5... O-O {[%clk 0:02:59]} 6. Be2 {[%clk 0:03:00.8]} 6... Na6 {[%clk 0:02:58.9]}
7. O-O {[%clk 0:02:59.9]} 7... e5 {[%clk 0:02:59.3]} 8. a3 {[%clk 0:02:51.5]}
8... c6 {[%clk 0:02:58.9]} 9. d5 {[%clk 0:02:47.9]} 9... Nc5 {[%clk 0:02:56.2]}
10. Bg5 {[%clk 0:02:37.6]} 10... cxd5 {[%clk 0:02:46.8]} 11. Nxd5 {[%clk
0:02:35.8]} 11... Ncxe4 {[%clk 0:02:41.9]} 12. Nxf6+ {[%clk 0:02:32.1]} 12...
Nxf6 {[%clk 0:02:37.9]} 13. Qd2 {[%clk 0:02:29.4]} 13... Ne4 {[%clk 0:02:36.7]}
14. Bxd8 {[%clk 0:02:27.5]} 14... Nxd2 {[%clk 0:02:37]} 15. Be7 {[%clk
0:02:24.6]} 15... Nxf1 {[%clk 0:02:32.1]} 16. Bxf8 {[%clk 0:02:06.6]} 16... Kxf8
{[%clk 0:02:24.4]} 17. Kxf1 {[%clk 0:02:05.9]} 17... e4 {[%clk 0:01:59.3]} 18.
Nd2 {[%clk 0:02:05.8]} 18... f5 {[%clk 0:01:53.1]} 19. Rb1 {[%clk 0:02:03.6]}
19... Be6 {[%clk 0:01:51.1]} 20. b3 {[%clk 0:01:59.8]} 20... Be5 {[%clk
0:01:50.7]} 21. g3 {[%clk 0:01:47.3]} 21... Rc8 {[%clk 0:01:51]} 22. Ke1 {[%clk
0:01:39.3]} 22... b5 {[%clk 0:01:31]} 23. Kd1 {[%clk 0:01:38.7]} 23... bxc4
{[%clk 0:01:28.8]} 24. Nxc4 {[%clk 0:01:31.9]} 24... Ke7 {[%clk 0:01:24.3]} 25.
Nxe5 {[%clk 0:01:30.5]} 25... dxe5 {[%clk 0:01:24.5]} 26. Kd2 {[%clk 0:01:21.2]}
26... f4 {[%clk 0:01:16.4]} 27. b4 {[%clk 0:01:19.2]} 27... Kf6 {[%clk
0:01:04.3]} 28. a4 {[%clk 0:01:19.2]} 28... Rd8+ {[%clk 0:00:59.8]} 29. Kc3
{[%clk 0:01:11.3]} 29... Rc8+ {[%clk 0:00:59.2]} 30. Kd2 {[%clk 0:01:10.9]}
30... Kf5 {[%clk 0:00:59.9]} 31. b5 {[%clk 0:01:04.6]} 31... Rd8+ {[%clk
0:01:00.1]} 32. Ke1 {[%clk 0:01:01.4]} 32... f3 {[%clk 0:00:58.1]} 33. Bf1
{[%clk 0:01:00.1]} 33... e3 {[%clk 0:00:58.1]} 34. fxe3 {[%clk 0:00:59.3]} 34...
Ke4 {[%clk 0:00:58.4]} 35. Kf2 {[%clk 0:00:29.5]} 35... Rd2+ {[%clk 0:00:56.9]}
36. Kg1 {[%clk 0:00:29.5]} 36... Ra2 {[%clk 0:00:46.8]} 37. b6 {[%clk 0:00:20]}
37... axb6 {[%clk 0:00:46.5]} 38. Rxb6 {[%clk 0:00:19.3]} 38... Bd5 {[%clk
0:00:46.7]} 39. Rb3 {[%clk 0:00:14.6]} 39... Bxb3 {[%clk 0:00:45.3]} 0-1

[Event "Late-Titled-Tuesday-Blitz-April-30-2024"]
[Site "Chess.com"]
[Date "2024.04.30"]
[Round "3"]
[White "grzechu96"]
[Black "FairChess_on_YouTube"]
[Result "1-0"]
[WhiteElo "2789"]
[BlackElo "3084"]
[TimeControl "180+1"]
[EndTime "14:28:54 PDT"]
[Termination "grzechu96 won by checkmate"]

1. e4 {[%clk 0:03:00.9]} 1... c5 {[%clk 0:02:57.9]} 2. Nf3 {[%clk 0:03:01.2]}
2... e6 {[%clk 0:02:57.8]} 3. d4 {[%clk 0:03:01.6]} 3... cxd4 {[%clk 0:02:58.7]}
4. Nxd4 {[%clk 0:03:02.5]} 4... Nc6 {[%clk 0:02:59.1]} 5. Nc3 {[%clk 0:03:02.8]}
5... Qc7 {[%clk 0:02:59.4]} 6. Be3 {[%clk 0:03:03]} 6... a6 {[%clk 0:02:58.9]}
7. a3 {[%clk 0:03:03.2]} 7... Nf6 {[%clk 0:02:58.2]} 8. f4 {[%clk 0:03:01.6]}
8... d5 {[%clk 0:02:57.9]} 9. e5 {[%clk 0:02:53.8]} 9... Nd7 {[%clk 0:02:58]}
10. Qd2 {[%clk 0:02:52]} 10... Be7 {[%clk 0:02:56.7]} 11. Bd3 {[%clk 0:02:41.4]}
11... O-O {[%clk 0:02:56.7]} 12. h4 {[%clk 0:02:31.1]} 12... Nc5 {[%clk
0:02:54.3]} 13. h5 {[%clk 0:02:29.3]} 13... Rd8 {[%clk 0:02:49.7]} 14. h6 {[%clk
0:02:26.9]} 14... g6 {[%clk 0:02:49.3]} 15. Qf2 {[%clk 0:02:21.7]} 15... b6
{[%clk 0:02:41.3]} 16. Nce2 {[%clk 0:02:12.1]} 16... a5 {[%clk 0:02:38.9]} 17.
O-O {[%clk 0:01:16.9]} 17... Ba6 {[%clk 0:02:35.2]} 18. Rad1 {[%clk 0:01:16]}
18... Ne4 {[%clk 0:02:21.2]} 19. Bxe4 {[%clk 0:01:11.6]} 19... dxe4 {[%clk
0:02:22.1]} 20. Rfe1 {[%clk 0:01:08.2]} 20... Bxe2 {[%clk 0:02:12.4]} 21. Nxe2
{[%clk 0:01:05.2]} 21... Rxd1 {[%clk 0:02:10.1]} 22. Rxd1 {[%clk 0:01:05.7]}
22... Rd8 {[%clk 0:02:10.6]} 23. Re1 {[%clk 0:01:00.4]} 23... Qb7 {[%clk
0:01:58.4]} 24. Nc3 {[%clk 0:00:59.2]} 24... b5 {[%clk 0:01:45.9]} 25. Bc5
{[%clk 0:00:54.5]} 25... f5 {[%clk 0:01:20.7]} 26. exf6 {[%clk 0:00:52.1]} 26...
Bxf6 {[%clk 0:01:21]} 27. Nxe4 {[%clk 0:00:51.7]} 27... Bh8 {[%clk 0:01:16.6]}
28. Ng5 {[%clk 0:00:43.7]} 28... Rd5 {[%clk 0:01:13.2]} 29. Nxe6 {[%clk
0:00:41.3]} 29... Qd7 {[%clk 0:01:10]} 30. c3 {[%clk 0:00:25.7]} 30... Bf6
{[%clk 0:01:03]} 31. Qe3 {[%clk 0:00:20.9]} 31... Rd1 {[%clk 0:01:01.3]} 32. Kh2
{[%clk 0:00:12.4]} 32... Rxe1 {[%clk 0:00:47.1]} 33. Qxe1 {[%clk 0:00:13.3]}
33... Qd5 {[%clk 0:00:47.7]} 34. Qe2 {[%clk 0:00:11.9]} 34... Kf7 {[%clk
0:00:47.4]} 35. Nc7 {[%clk 0:00:07.3]} 35... Qf5 {[%clk 0:00:41.5]} 36. Qe8#
{[%clk 0:00:06]} 1-0

[Event "Late-Titled-Tuesday-Blitz-April-30-2024"]
[Site "Chess.com"]
[Date "2024.04.30"]
[Round "3"]
[White "LuciaMalanRamos"]
[Black "kalinchick"]
[Result "0-1"]
[WhiteElo "2118"]
[BlackElo "2472"]
[TimeControl "180+1"]
[EndTime "14:28:56 PDT"]
[Termination "kalinchick won by resignation"]

1. d4 {[%clk 0:02:57.5]} 1... e6 {[%clk 0:03:00.9]} 2. Nf3 {[%clk 0:02:57.4]}
2... d5 {[%clk 0:03:01]} 3. c4 {[%clk 0:02:57.8]} 3... Nf6 {[%clk 0:03:01.2]} 4.
e3 {[%clk 0:02:58.2]} 4... Be7 {[%clk 0:03:00.7]} 5. Nc3 {[%clk 0:02:57.9]} 5...
O-O {[%clk 0:03:01.2]} 6. cxd5 {[%clk 0:02:58.3]} 6... exd5 {[%clk 0:03:01]} 7.
Bd3 {[%clk 0:02:57.1]} 7... Bg4 {[%clk 0:02:58.4]} 8. h3 {[%clk 0:02:57.5]} 8...
Bh5 {[%clk 0:02:58.4]} 9. O-O {[%clk 0:02:57.6]} 9... c6 {[%clk 0:02:53.9]} 10.
Be2 {[%clk 0:02:55.8]} 10... Nbd7 {[%clk 0:02:51.6]} 11. Bd2 {[%clk 0:02:52.2]}
11... Bd6 {[%clk 0:02:51.6]} 12. Rc1 {[%clk 0:02:47.8]} 12... Qe7 {[%clk
0:02:50.9]} 13. Ng5 {[%clk 0:02:42.5]} 13... Bg6 {[%clk 0:02:47.2]} 14. a3
{[%clk 0:02:36.9]} 14... a5 {[%clk 0:02:41.4]} 15. Nf3 {[%clk 0:02:29.2]} 15...
Ne4 {[%clk 0:02:39.4]} 16. Be1 {[%clk 0:02:17.3]} 16... f5 {[%clk 0:02:34.6]}
17. Nd2 {[%clk 0:02:13.2]} 17... f4 {[%clk 0:02:22.8]} 18. exf4 {[%clk
0:02:07.6]} 18... Bxf4 {[%clk 0:02:19.9]} 19. Ra1 {[%clk 0:02:00.4]} 19... Kh8
{[%clk 0:02:08.1]} 20. Ndxe4 {[%clk 0:01:55.1]} 20... dxe4 {[%clk 0:02:08.2]}
21. Bg4 {[%clk 0:01:49.8]} 21... Nf6 {[%clk 0:02:02.5]} 22. Be2 {[%clk
0:01:46.5]} 22... Rad8 {[%clk 0:01:52]} 23. Qa4 {[%clk 0:01:39.2]} 23... Bc7
{[%clk 0:01:51.3]} 24. Rd1 {[%clk 0:01:33.2]} 24... e3 {[%clk 0:01:44.6]} 25.
Bf3 {[%clk 0:01:15]} 25... Bh5 {[%clk 0:01:37.3]} 26. fxe3 {[%clk 0:01:09.9]}
26... Qxe3+ {[%clk 0:01:31.3]} 27. Kh1 {[%clk 0:01:06]} 27... Qf4 {[%clk
0:01:31.2]} 28. Kg1 {[%clk 0:01:02.7]} 28... Qh2+ {[%clk 0:01:27.9]} 29. Kf2
{[%clk 0:01:01.6]} 29... Rfe8 {[%clk 0:01:28.5]} 30. Bxh5 {[%clk 0:00:52.2]}
30... Nxh5 {[%clk 0:01:24.6]} 31. Rd3 {[%clk 0:00:32.4]} 31... Rf8+ {[%clk
0:01:16.8]} 32. Ke2 {[%clk 0:00:19.6]} 32... Qxg2+ {[%clk 0:01:15.9]} 33. Rf2
{[%clk 0:00:18.2]} 33... Rxf2+ {[%clk 0:01:13.1]} 34. Bxf2 {[%clk 0:00:19.1]}
34... Nf4+ {[%clk 0:01:13.1]} 35. Ke3 {[%clk 0:00:17]} 35... Nxd3 {[%clk
0:01:12.1]} 36. Kxd3 {[%clk 0:00:15.8]} 36... Qxf2 {[%clk 0:01:11.2]} 37. Ne2
{[%clk 0:00:10.6]} 37... Qf3+ {[%clk 0:01:09.4]} 38. Kd2 {[%clk 0:00:09.9]}
38... Bf4+ {[%clk 0:01:09.3]} 39. Nxf4 {[%clk 0:00:09.9]} 39... Qxf4+ {[%clk
0:01:10.2]} 40. Kc3 {[%clk 0:00:08.7]} 40... Qe3+ {[%clk 0:01:10.4]} 41. Kc2
{[%clk 0:00:08.6]} 41... Qxd4 {[%clk 0:01:10.9]} 42. Qxd4 {[%clk 0:00:08]} 42...
Rxd4 {[%clk 0:01:11.8]} 43. Kc3 {[%clk 0:00:08.4]} 43... Rh4 {[%clk 0:01:12.1]}
44. b4 {[%clk 0:00:08.7]} 44... Rxh3+ {[%clk 0:01:13]} 45. Kc4 {[%clk
0:00:08.9]} 45... axb4 {[%clk 0:01:12.5]} 46. axb4 {[%clk 0:00:09.5]} 46... b6
{[%clk 0:01:13.1]} 47. b5 {[%clk 0:00:09.7]} 47... cxb5+ {[%clk 0:01:13.5]} 48.
Kxb5 {[%clk 0:00:10]} 48... Rc3 {[%clk 0:01:14]} 49. Kxb6 {[%clk 0:00:10.9]}
49... h5 {[%clk 0:01:13.5]} 50. Kb5 {[%clk 0:00:11.8]} 50... h4 {[%clk
0:01:13.4]} 51. Kb6 {[%clk 0:00:12.7]} 51... h3 {[%clk 0:01:13.1]} 52. Kb5
{[%clk 0:00:13.6]} 52... h2 {[%clk 0:01:13.3]} 53. Kb6 {[%clk 0:00:14.5]} 53...
h1=Q {[%clk 0:01:13.3]} 54. Kb5 {[%clk 0:00:15.4]} 54... g5 {[%clk 0:01:12.1]}
55. Kb4 {[%clk 0:00:16.3]} 55... Rc8 {[%clk 0:01:11.1]} 56. Ka4 {[%clk
0:00:17.2]} 56... Rb8 {[%clk 0:01:09.9]} 0-1

[Event "Late-Titled-Tuesday-Blitz-April-30-2024"]
[Site "Chess.com"]
[Date "2024.04.30"]
[Round "3"]
[White "burritus"]
[Black "FMalexhdez"]
[Result "0-1"]
[WhiteElo "2411"]
[BlackElo "2255"]
[TimeControl "180+1"]
[EndTime "14:28:58 PDT"]
[Termination "FMalexhdez won on time"]

1. Nf3 {[%clk 0:03:00.9]} 1... c5 {[%clk 0:02:56.3]} 2. g3 {[%clk 0:02:59.4]}
2... b6 {[%clk 0:02:56.4]} 3. Bg2 {[%clk 0:02:59.7]} 3... Bb7 {[%clk 0:02:57]}
4. O-O {[%clk 0:03:00.1]} 4... e6 {[%clk 0:02:57.1]} 5. c4 {[%clk 0:02:58.9]}
5... Nf6 {[%clk 0:02:56.8]} 6. Nc3 {[%clk 0:02:56.1]} 6... Be7 {[%clk
0:02:54.6]} 7. Re1 {[%clk 0:02:55.9]} 7... d5 {[%clk 0:02:53]} 8. cxd5 {[%clk
0:02:55.8]} 8... Nxd5 {[%clk 0:02:51.4]} 9. e4 {[%clk 0:02:55.4]} 9... Nxc3
{[%clk 0:02:51]} 10. bxc3 {[%clk 0:02:56.3]} 10... O-O {[%clk 0:02:49.1]} 11. d4
{[%clk 0:02:56.3]} 11... cxd4 {[%clk 0:02:47.2]} 12. cxd4 {[%clk 0:02:55.7]}
12... Nd7 {[%clk 0:02:46.5]} 13. Bb2 {[%clk 0:02:52.9]} 13... Nf6 {[%clk
0:02:44.7]} 14. Ne5 {[%clk 0:02:49.4]} 14... Rc8 {[%clk 0:02:42.9]} 15. Qa4
{[%clk 0:02:46.2]} 15... a6 {[%clk 0:02:36.3]} 16. Rad1 {[%clk 0:02:44.9]} 16...
b5 {[%clk 0:02:36]} 17. Qb3 {[%clk 0:02:44.1]} 17... Qb6 {[%clk 0:02:33.4]} 18.
d5 {[%clk 0:02:35.4]} 18... Bc5 {[%clk 0:02:31]} 19. Re2 {[%clk 0:02:25.2]}
19... exd5 {[%clk 0:02:24.3]} 20. exd5 {[%clk 0:02:24.1]} 20... a5 {[%clk
0:01:53]} 21. Nc6 {[%clk 0:02:12.6]} 21... a4 {[%clk 0:01:43.9]} 22. Qf3 {[%clk
0:01:51.7]} 22... Nxd5 {[%clk 0:01:37.5]} 23. Qg4 {[%clk 0:01:32.3]} 23... g6
{[%clk 0:01:23.3]} 24. Bxd5 {[%clk 0:00:46.3]} 24... Bxc6 {[%clk 0:01:23]} 25.
Qg5 {[%clk 0:00:46.5]} 25... Bxd5 {[%clk 0:01:16.8]} 26. Qh6 {[%clk 0:00:46.3]}
26... f6 {[%clk 0:00:52.9]} 27. Rxd5 {[%clk 0:00:46]} 27... Bxf2+ {[%clk
0:00:52.2]} 28. Rxf2 {[%clk 0:00:40.7]} 28... Rc2 {[%clk 0:00:52]} 29. Bd4
{[%clk 0:00:37.3]} 29... Qc6 {[%clk 0:00:43.7]} 30. Bxf6 {[%clk 0:00:14.7]}
30... Rc1+ {[%clk 0:00:42]} 31. Qxc1 {[%clk 0:00:10.8]} 31... Qxc1+ {[%clk
0:00:40.9]} 32. Kg2 {[%clk 0:00:11.5]} 32... Qc6 {[%clk 0:00:39.4]} 33. Rd2
{[%clk 0:00:09.7]} 33... Rxf6 {[%clk 0:00:38.1]} 0-1